bitfinex/quotes_BTCUSD_20240101
["timestamp","ask_amount","ask_price","bid_price","bid_amount"]
[1704139309128,0.01,43644.0,43634.0,0.005]
[1704139309129,0.000234,43641.0,43635.0,0.23321711]
[1704139309363,0.000234,43640.0,43635.0,0.23321711]
[1704139309486,0.000234,43643.0,43636.0,0.09525362]
[1704139309691,0.2044,43648.0,43636.0,0.09525362]
[1704139309692,0.000234,43642.0,43637.0,0.23321711]
[1704139309895,0.000234,43653.0,43643.0,0.4]
[1704139310157,0.09914,43655.0,43644.0,0.23321711]
[1704139310158,0.000234,43648.0,43644.0,0.23321711]
[1704139310358,0.01,43660.0,43644.0,0.28061711]
[1704139310359,0.000234,43651.0,43644.0,0.28061711]
[1704139310561,0.000234,43651.0,43645.0,0.09525362]
[1704139310759,0.000234,43650.0,43646.0,0.23321711]
[1704139311205,0.000234,43651.0,43647.0,0.04758]
[1704139311406,0.000234,43650.0,43648.0,0.23321711]
[1704139311779,0.000234,43651.0,43649.0,0.04458]
[1704139311979,0.000234,43655.0,43650.0,0.23321711]
[1704139312246,0.000234,43652.0,43650.0,0.23321711]
[1704139312644,0.000234,43658.0,43654.0,0.4]
[1704139312842,0.000234,43658.0,43655.0,0.23321711]
[1704139313014,0.000234,43659.0,43655.0,0.23321711]
[1704139313189,0.000234,43659.0,43655.0,0.27737711]
[1704139313425,0.000234,43659.0,43655.0,0.23321711]
[1704139313599,0.000234,43659.0,43655.0,0.27737711]
[1704139313800,0.000234,43659.0,43655.0,0.23321711]
[1704139314122,0.000234,43664.0,43655.0,0.37875073]
[1704139314344,0.00474638,43667.0,43655.0,0.37875073]
[1704139314345,0.000234,43663.0,43656.0,0.17775362]
[1704139314547,0.000234,43663.0,43657.0,0.23321711]
[1704139314760,0.10474638,43667.0,43657.0,0.06756]
[1704139314761,0.10498038,43658.0,43657.0,0.06756]
[1704139314958,0.20498038,43658.0,43656.0,0.04963286]
[1704139315105,0.10498038,43656.0,43655.0,0.003]
[1704139315301,0.57148138,43656.0,43655.0,0.005]
[1704139315501,0.57148138,43656.0,43655.0,0.004]
[1704139315751,0.57148138,43656.0,43645.0,0.09952719]
[1704139315752,0.00498038,43646.0,43645.0,0.09952719]
[1704139315956,0.000234,43646.0,43645.0,0.3327443]
[1704139316162,0.00498038,43646.0,43645.0,0.23321711]
[1704139316783,0.000234,43646.0,43645.0,0.23321711]
[1704139316997,0.002234,43646.0,43645.0,0.24521711]
[1704139317219,0.002234,43646.0,43645.0,0.26321711]
[1704139317220,0.004234,43646.0,43645.0,0.26321711]
[1704139317405,0.10698038,43646.0,43645.0,0.012]
[1704139317816,0.10798038,43646.0,43645.0,0.027]
[1704139318257,0.10798038,43646.0,43645.0,0.015]
[1704139318879,0.10698038,43646.0,43645.0,0.026]
[1704139319083,0.10698038,43646.0,43645.0,0.011]
[1704139319084,0.10598038,43646.0,43645.0,0.011]
[1704139319264,0.000234,43638.0,43637.0,0.09930906]
[1704139319468,0.000234,43638.0,43637.0,0.33252617]
[1704139319681,0.000234,43638.0,43637.0,0.28321711]
[1704139320329,0.002234,43638.0,43637.0,0.25121711]
[1704139320707,0.000234,43638.0,43637.0,0.23321711]
[1704139320922,0.002234,43638.0,43637.0,0.25121711]
[1704139321573,0.00898038,43638.0,43637.0,0.26121711]
[1704139321991,0.00898038,43638.0,43637.0,0.018]
[1704139321992,0.10698038,43638.0,43637.0,0.018]
[1704139322203,0.000234,43634.0,43633.0,0.091746]
[1704139322431,0.366599,43645.0,43633.0,0.32496311]
[1704139322432,0.000234,43637.0,43633.0,0.32496311]
[1704139322649,0.002,43638.0,43637.0,0.27361962]
[1704139322863,0.000234,43645.0,43642.0,0.4]
[1704139323085,0.4,43656.0,43637.0,0.10596]
[1704139323086,0.002234,43638.0,43637.0,0.10596]
[1704139323291,0.002234,43638.0,43637.0,0.26261711]
[1704139323525,0.000234,43638.0,43637.0,0.24461711]
[1704139323762,0.002234,43638.0,43637.0,0.25461711]
[1704139323998,0.00698038,43638.0,43637.0,0.24321711]
[1704139324464,0.002,43638.0,43637.0,0.24321711]
[1704139324934,0.002,43638.0,43637.0,0.29091711]
[1704139325190,0.002,43638.0,43637.0,0.48593673]
[1704139325428,0.002,43638.0,43637.0,0.92435673]
[1704139325678,0.000234,43648.0,43642.0,0.4]
[1704139325913,0.000234,43648.0,43643.0,0.23321711]
[1704139326393,0.000234,43653.0,43647.0,0.4]
[1704139326661,0.000234,43652.0,43648.0,0.53321711]
[1704139327135,0.05,43658.0,43648.0,0.60011711]
[1704139327354,0.000234,43653.0,43649.0,0.05712]
[1704139327566,0.000234,43654.0,43650.0,0.23321711]
[1704139327809,0.000234,43652.0,43651.0,0.5697]
[1704139328062,0.000234,43652.0,43651.0,0.80291711]
[1704139328312,0.000234,43652.0,43651.0,0.23321711]
[1704139328535,0.1,43656.0,43651.0,0.23321711]
[1704139328536,0.002234,43653.0,43651.0,0.23321711]
[1704139328756,0.002,43653.0,43652.0,0.23321711]
[1704139328968,0.000234,43656.0,43652.0,0.70593711]
[1704139329494,0.002,43653.0,43652.0,0.63321711]
[1704139329748,0.002,43653.0,43652.0,0.93321711]
[1704139330010,0.002,43653.0,43652.0,1.00323711]
[1704139330219,0.002,43653.0,43652.0,1.01923711]
[1704139330507,0.000234,43655.0,43652.0,1.01731711]
[1704139330717,0.002234,43656.0,43652.0,1.00131711]
[1704139330957,0.002,43656.0,43655.0,0.32847073]
[1704139331662,0.000234,43662.0,43659.0,0.4]
[1704139331874,0.000234,43662.0,43660.0,0.23321711]
[1704139332308,0.000234,43661.0,43660.0,0.23321711]
[1704139332753,0.000234,43665.0,43660.0,0.28949711]
[1704139332962,0.001,43662.0,43660.0,0.28949711]
[1704139333179,0.001,43662.0,43661.0,0.61595711]
[1704139333384,0.35415414,43680.0,43664.0,0.4]
[1704139333597,0.000234,43669.0,43665.0,0.23321711]
[1704139333983,0.000234,43669.0,43665.0,0.28230269]
[1704139334202,0.000234,43669.0,43665.0,0.23321711]
[1704139334680,0.35415414,43680.0,43665.0,0.28295711]
[1704139334896,0.000234,43672.0,43666.0,0.0498]
[1704139335115,0.000234,43672.0,43667.0,0.23321711]
[1704139335813,0.000234,43672.0,43669.0,0.4]
[1704139336026,0.000234,43672.0,43670.0,0.23321711]
[1704139336457,0.000234,43672.0,43670.0,0.29723711]
[1704139336662,0.000234,43672.0,43671.0,0.05196]
[1704139336887,0.000234,43672.0,43671.0,0.28517711]
[1704139337094,0.000234,43672.0,43671.0,0.23321711]
[1704139337514,0.10498038,43671.0,43670.0,0.05342]
[1704139337741,0.20498038,43671.0,43670.0,0.005]
[1704139337957,0.57135538,43671.0,43670.0,0.005]
[1704139338160,0.57135538,43671.0,43670.0,0.013]
[1704139338161,0.05292038,43671.0,43670.0,0.013]
[1704139338372,0.10498038,43671.0,43670.0,0.013]
[1704139338816,0.366329,43677.0,43670.0,0.008]
[1704139339087,0.000234,43668.0,43662.0,0.05628]
[1704139339317,0.000234,43668.0,43663.0,0.47791711]
[1704139339544,0.000234,43670.0,43663.0,0.47791711]
[1704139339788,0.000234,43670.0,43664.0,0.3]
[1704139340011,0.000234,43667.0,43665.0,0.23321711]
[1704139341558,0.1,43672.0,43665.0,0.23321711]
[1704139341559,0.000234,43672.0,43665.0,0.23321711]
[1704139341769,0.40305414,43680.0,43670.0,0.4]
[1704139341770,0.35415414,43680.0,43670.0,0.4]
[1704139342029,0.000234,43675.0,43671.0,0.23321711]
[1704139342237,0.000234,43674.0,43671.0,0.18321711]
[1704139342447,0.45415414,43680.0,43679.0,0.19501962]
[1704139342859,0.35415414,43680.0,43679.0,0.19501962]
[1704139343069,0.35415414,43680.0,43679.0,0.42823673]
[1704139343516,0.45415414,43680.0,43679.0,0.19501962]
[1704139343923,0.55415414,43680.0,43679.0,0.19501962]
[1704139344484,0.92045414,43680.0,43679.0,0.19501962]
[1704139344716,0.92045414,43680.0,43679.0,0.42823673]
[1704139344717,0.35415414,43680.0,43679.0,0.42823673]
[1704139344885,0.35515414,43680.0,43679.0,0.42823673]
[1704139345087,0.35515414,43680.0,43679.0,0.42923673]
[1704139345285,0.45615414,43680.0,43679.0,0.19601962]
[1704139345736,0.55615414,43680.0,43679.0,0.19601962]
[1704139346373,0.97795414,43680.0,43679.0,0.19601962]
[1704139346777,1.07795414,43680.0,43679.0,0.19601962]
[1704139347187,0.1,43672.0,43671.0,0.04908614]
[1704139347603,0.1,43670.0,43669.0,0.05]
[1704139347965,0.1,43675.0,43669.0,0.28321711]
[1704139348171,0.1,43676.0,43670.0,0.23321711]
[1704139348425,0.1,43672.0,43670.0,0.23321711]
[1704139348625,0.1,43672.0,43671.0,0.006]
[1704139348761,0.1,43672.0,43671.0,0.015]
[1704139348961,0.623127,43672.0,43671.0,0.009]
[1704139349170,0.566384,43670.0,43669.0,0.006]
[1704139349632,1.37598511,43670.0,43669.0,0.006]
[1704139349805,0.676434,43664.0,43663.0,0.05]
[1704139350029,1.37608511,43664.0,43663.0,0.05]
[1704139350233,1.37608511,43664.0,43635.0,0.1]
[1704139350234,0.1,43649.0,43646.0,0.091703]
[1704139350594,0.1,43649.0,43647.0,0.23321711]
[1704139350595,0.03,43649.0,43647.0,0.23321711]
[1704139351655,0.03,43643.0,43640.0,0.31011779]
[1704139351865,0.01,43652.0,43640.0,0.04981779]
[1704139351866,0.03,43642.0,43640.0,0.04981779]
[1704139352079,0.03,43640.0,43633.0,0.02774229]
[1704139352298,0.03,43639.0,43634.0,0.23321711]
[1704139352517,0.03,43638.0,43637.0,0.091729]
[1704139352951,0.03,43638.0,43634.0,0.23321711]
[1704139352952,0.03,43636.0,43634.0,0.23321711]
[1704139353426,0.03,43636.0,43634.0,0.32495111]
[1704139354246,0.03,43635.0,43630.0,0.02915]
[1704139354432,0.001,43639.0,43631.0,0.23321711]
[1704139354433,0.03,43633.0,43631.0,0.23321711]
[1704139355461,0.03,43633.0,43631.0,0.32496011]
[1704139355825,0.03,43633.0,43631.0,0.32796011]
[1704139356091,0.03,43632.0,43631.0,0.091743]
[1704139356324,0.03,43631.0,43630.0,0.02915]
[1704139357431,0.13,43631.0,43630.0,0.02915]
[1704139358323,0.23,43631.0,43630.0,0.03015]
[1704139358533,0.666651,43631.0,43630.0,0.03015]
[1704139358787,0.666651,43631.0,43630.0,0.02915]
[1704139359212,0.19994,43631.0,43630.0,0.02915]
[1704139359458,0.131,43631.0,43630.0,0.02915]
[1704139359697,0.0495,43633.0,43630.0,0.26236711]
[1704139359912,0.03,43638.0,43631.0,0.23321711]
[1704139360835,0.03,43638.0,43631.0,0.27833711]
[1704139361046,0.03,43638.0,43631.0,0.23321711]
[1704139361257,0.1,43641.0,43631.0,0.23321711]
[1704139361474,0.03,43632.0,43631.0,0.001]
[1704139361944,0.04464,43637.0,43631.0,0.23321711]
[1704139361945,0.03,43637.0,43631.0,0.23321711]
[1704139362146,0.03,43633.0,43631.0,0.25521711]
[1704139362351,0.101,43638.0,43631.0,0.25521711]
[1704139362568,0.03,43636.0,43631.0,0.24021711]
[1704139362767,0.001,43638.0,43631.0,0.24321711]
[1704139362768,0.03,43637.0,43631.0,0.24321711]
[1704139362973,0.03,43637.0,43631.0,0.24021711]
[1704139363247,0.031,43638.0,43632.0,0.23321711]
[1704139363444,0.03,43638.0,43632.0,0.23321711]
[1704139364937,0.03,43642.0,43632.0,0.23321711]
[1704139365177,0.003,43638.0,43633.0,0.04518]
[1704139365392,0.003,43638.0,43631.0,0.001]
[1704139365393,0.003,43638.0,43634.0,0.23321711]
[1704139365837,0.033,43638.0,43634.0,0.23321711]
[1704139366039,0.003,43638.0,43634.0,0.23321711]
[1704139366504,0.03,43640.0,43634.0,0.23321711]
[1704139366707,0.03,43642.0,43634.0,0.23321711]
[1704139366890,0.005,43638.0,43634.0,0.23321711]
[1704139367099,0.005,43638.0,43634.0,0.23268911]
[1704139367313,0.03,43640.0,43634.0,0.23268911]
[1704139367525,0.03,43640.0,43634.0,0.23368911]
[1704139367757,0.039,43640.0,43634.0,0.23368911]
[1704139367964,0.009,43640.0,43635.0,0.4]
[1704139368176,0.03,43642.0,43636.0,0.23321711]
[1704139368396,0.006,43638.0,43636.0,0.23321711]
[1704139369786,0.036,43638.0,43636.0,0.23321711]
[1704139369987,0.1,43637.0,43631.0,0.3289]
[1704139370197,0.03,43632.0,43631.0,0.3289]
[1704139370373,0.03,43631.0,43630.0,0.02915]
[1704139371474,0.03,43633.0,43630.0,0.02915]
[1704139371678,0.03,43634.0,43630.0,0.02915]
[1704139371940,0.03,43631.0,43630.0,0.02915]
[1704139372354,0.03,43631.0,43630.0,0.03915]
[1704139372605,0.13,43631.0,43630.0,0.03915]
[1704139372958,0.18416,43631.0,43630.0,0.04215]
[1704139373402,0.18316,43631.0,43630.0,0.02915]
[1704139373609,0.135,43631.0,43630.0,0.02915]
[1704139374024,0.13,43631.0,43630.0,0.02915]
[1704139374377,0.141,43631.0,43630.0,0.03015]
[1704139376035,0.142,43631.0,43630.0,0.03015]
[1704139376241,0.012,43631.0,43630.0,0.02915]
[1704139376455,0.031,43631.0,43630.0,0.02915]
[1704139376658,0.039,43631.0,43630.0,0.03015]
[1704139377299,0.039,43631.0,43630.0,0.02915]
[1704139377300,0.03,43631.0,43630.0,0.02915]
[1704139377505,0.135,43631.0,43630.0,0.02915]
[1704139377717,0.135,43631.0,43630.0,0.03015]
[1704139377718,0.243,43631.0,43630.0,0.03015]
[1704139377933,0.659151,43631.0,43630.0,0.03015]
[1704139378135,0.651151,43631.0,43630.0,0.02915]
[1704139378343,0.501711,43631.0,43630.0,0.02915]
[1704139378767,0.13,43631.0,43630.0,0.02915]
[1704139378983,0.034,43631.0,43630.0,0.02915]
[1704139379430,0.03,43631.0,43630.0,0.02915]
[1704139379642,0.042,43631.0,43630.0,0.03015]
[1704139380076,0.034,43631.0,43630.0,0.02915]
[1704139380306,0.034,43631.0,43630.0,0.03015]
[1704139380535,0.038,43631.0,43630.0,0.03015]
[1704139380969,0.008,43631.0,43630.0,0.26336711]
[1704139381414,0.016,43631.0,43630.0,0.56436711]
[1704139382072,0.02,43631.0,43630.0,0.56436711]
[1704139382294,0.016,43631.0,43630.0,0.56436711]
[1704139382736,0.016,43631.0,43630.0,0.58236711]
[1704139383159,0.03,43637.0,43630.0,0.63670711]
[1704139383372,0.03,43637.0,43631.0,0.53321711]
[1704139384048,0.03,43633.0,43631.0,0.53321711]
[1704139384269,0.1,43642.0,43630.0,0.04415]
[1704139384270,0.03,43636.0,43632.0,0.23321711]
[1704139385347,0.031,43636.0,43632.0,0.24421711]
[1704139385780,0.03,43633.0,43632.0,0.026]
[1704139385995,0.13,43633.0,43632.0,0.011]
[1704139386211,0.18268,43633.0,43632.0,0.011]
[1704139386426,0.13,43633.0,43632.0,0.024]
[1704139386684,0.13,43633.0,43632.0,0.011]
[1704139386910,0.1,43631.0,43630.0,0.02915]
[1704139387133,0.13,43631.0,43630.0,0.02915]
[1704139388859,0.03,43631.0,43630.0,0.02915]
[1704139389071,0.03,43631.0,43630.0,0.03215]
[1704139389297,0.03,43637.0,43630.0,0.26536711]
[1704139389514,0.03,43637.0,43631.0,0.23321711]
[1704139389736,0.366575,43648.0,43631.0,0.23321711]
[1704139389737,0.03,43635.0,43631.0,0.23321711]
[1704139390203,0.1,43640.0,43631.0,0.23321711]
[1704139390204,0.03,43634.0,43631.0,0.23321711]
[1704139390397,0.03,43635.0,43631.0,0.23321711]
[1704139390804,0.03,43637.0,43631.0,0.23321711]
[1704139391026,0.03,43638.0,43631.0,0.68229711]
[1704139391193,0.03,43638.0,43632.0,0.34752]
[1704139391194,0.003,43635.0,43632.0,0.34752]
[1704139391500,0.003,43635.0,43633.0,0.23321711]
[1704139391780,0.03,43641.0,43633.0,0.28085711]
[1704139391951,0.006,43637.0,43633.0,0.28085711]
[1704139392120,0.006,43637.0,43634.0,0.3]
[1704139392348,0.006,43637.0,43635.0,0.23321711]
[1704139393357,0.03,43640.0,43635.0,0.23321711]
[1704139393568,0.03,43639.0,43635.0,0.23321711]
[1704139394427,0.001,43637.0,43635.0,0.24321711]
[1704139395092,0.03,43643.0,43635.0,0.23321711]
[1704139395312,0.001,43639.0,43635.0,0.25621711]
[1704139396194,0.001,43639.0,43635.0,0.24321711]
[1704139396409,0.001,43639.0,43636.0,0.3]
[1704139396637,0.001,43639.0,43637.0,0.23321711]
[1704139396890,0.03,43642.0,43637.0,0.23321711]
[1704139397322,0.03,43643.0,43637.0,0.23321711]
[1704139397537,0.03,43651.0,43638.0,0.06462]
[1704139397754,0.03,43648.0,43641.0,0.4]
[1704139397986,0.03,43648.0,43642.0,0.53321711]
[1704139398219,0.03,43652.0,43642.0,0.60011711]
[1704139398439,0.3859,43658.0,43644.0,0.01]
[1704139398440,0.03,43654.0,43644.0,0.01]
[1704139398658,0.03,43654.0,43645.0,0.23321711]
[1704139398870,0.03,43654.0,43646.0,0.3]
[1704139399097,0.03,43654.0,43647.0,0.23321711]
[1704139399312,0.03,43654.0,43648.0,0.3]
[1704139399549,0.03,43654.0,43649.0,0.23321711]
[1704139399769,0.04572,43663.0,43649.0,0.23321711]
[1704139399983,0.366421,43666.0,43650.0,0.3]
[1704139399984,0.03,43659.0,43650.0,0.3]
[1704139400200,0.03,43659.0,43652.0,0.4]
[1704139400427,0.03,43659.0,43653.0,0.23321711]
[1704139400667,0.03,43659.0,43653.0,0.53321711]
[1704139400900,0.03,43661.0,43654.0,0.01]
[1704139401103,0.1,43667.0,43655.0,0.24321711]
[1704139401104,0.03,43659.0,43655.0,0.24321711]
[1704139401314,0.03,43659.0,43656.0,0.3]
[1704139401537,0.03,43659.0,43657.0,0.23321711]
[1704139401765,0.03,43659.0,43658.0,0.3]
[1704139402276,0.03,43661.0,43658.0,0.53321711]
[1704139402486,0.03,43660.0,43659.0,0.23321711]
[1704139404873,0.03,43660.0,43659.0,0.24121711]
[1704139405712,0.03,43660.0,43659.0,0.25421711]
[1704139406584,0.03,43663.0,43659.0,0.25421711]
[1704139406886,0.03,43664.0,43659.0,0.25421711]
[1704139407573,0.03,43664.0,43659.0,0.23321711]
[1704139407799,0.03,43664.0,43659.0,0.25321711]
[1704139408015,0.03,43664.0,43659.0,0.24121711]
[1704139408211,0.03,43664.0,43659.0,0.23321711]
[1704139408427,0.03,43664.0,43659.0,0.24821711]
[1704139408658,0.03,43664.0,43659.0,0.24421711]
[1704139408874,0.03,43664.0,43659.0,0.25921711]
[1704139409201,0.03,43664.0,43659.0,0.23321711]
[1704139410497,0.03,43664.0,43659.0,0.25921711]
[1704139410716,0.06,43670.0,43662.0,0.04]
[1704139410927,0.06,43670.0,43662.0,0.27321711]
[1704139411149,0.4601,43681.0,43671.0,0.04]
[1704139411150,0.05604,43679.0,43671.0,0.04]
[1704139411378,0.35415414,43680.0,43672.0,0.27321711]
[1704139412746,0.35415414,43680.0,43675.0,0.36634]
[1704139413191,0.35415414,43680.0,43679.0,0.366308]
[1704139413609,0.35415414,43680.0,43679.0,0.63952511]
[1704139414043,0.35415414,43680.0,43679.0,0.73117511]
[1704139414878,0.35415414,43680.0,43679.0,1.03117511]
[1704139415280,0.35415414,43680.0,43679.0,1.04017511]
[1704139415491,0.35415414,43680.0,43679.0,1.05417511]
[1704139415903,0.35415414,43680.0,43679.0,1.04517511]
[1704139416106,0.35415414,43680.0,43679.0,1.04017511]
[1704139416333,0.35415414,43680.0,43679.0,1.06744794]
[1704139416549,0.35415414,43680.0,43679.0,1.08144794]
[1704139416760,0.35415414,43680.0,43679.0,1.06744794]
[1704139417174,0.35415414,43680.0,43679.0,1.54375594]
[1704139417378,0.35415414,43680.0,43679.0,1.98920394]
[1704139417379,0.09687014,43680.0,43679.0,1.98920394]
[1704139417617,0.00049114,43680.0,43679.0,2.06852394]
[1704139417856,0.96221354,43684.0,43681.0,0.15]
[1704139418057,0.75977581,43684.0,43683.0,1.13949211]
[1704139418268,0.75977581,43684.0,43683.0,1.43949211]
[1704139418482,0.75977581,43684.0,43683.0,1.86552711]
[1704139418701,0.75977581,43684.0,43683.0,1.33949211]
[1704139419137,0.75977581,43684.0,43683.0,1.40021211]
[1704139419355,0.75977581,43684.0,43683.0,1.41921211]
[1704139419764,0.75977581,43684.0,43683.0,1.50021211]
[1704139419971,0.75977581,43684.0,43683.0,1.61613211]
[1704139420198,0.75977581,43684.0,43683.0,1.56481211]
[1704139420645,0.34450681,43684.0,43683.0,2.14644711]
[1704139420850,0.00145,43686.0,43685.0,0.35]
[1704139421058,0.00145,43686.0,43685.0,0.68321711]
[1704139421276,0.00145,43686.0,43685.0,0.94947511]
[1704139421501,0.00145,43686.0,43685.0,1.00569511]
[1704139422129,0.00145,43686.0,43685.0,1.13005511]
[1704139422536,0.00145,43686.0,43685.0,1.14805511]
[1704139422790,0.00145,43686.0,43685.0,0.97647511]
[1704139422990,0.00145,43686.0,43685.0,0.95747511]
[1704139423199,0.00145,43686.0,43685.0,0.93947511]
[1704139423408,0.00145,43686.0,43685.0,0.95847511]
[1704139423615,0.00145,43686.0,43685.0,0.96708426]
[1704139424069,0.00145,43686.0,43685.0,0.04660915]
[1704139424276,0.00145,43686.0,43685.0,0.019]
[1704139424481,0.06145,43686.0,43685.0,0.037]
[1704139425108,0.06145,43686.0,43679.0,0.11892283]
[1704139425109,0.06,43682.0,43679.0,0.11892283]
[1704139425380,0.06,43681.0,43677.0,0.09937523]
[1704139425615,0.06,43680.0,43677.0,0.09937523]
[1704139425839,0.06,43679.0,43677.0,0.09937523]
[1704139426068,0.16,43678.0,43677.0,0.04937523]
[1704139426296,0.2281,43678.0,43677.0,0.04937523]
[1704139426517,0.06,43676.0,43670.0,0.0278569]
[1704139426745,0.06,43676.0,43669.0,0.05]
[1704139426967,0.06,43675.0,43669.0,0.05]
[1704139427189,0.06,43675.0,43669.0,0.14167]
[1704139427901,0.06,43675.0,43669.0,0.16977422]
[1704139428116,0.06,43675.0,43669.0,0.11977422]
[1704139428352,0.001,43678.0,43677.0,0.001]
[1704139428571,0.2961,43683.0,43674.0,0.40635]
[1704139428795,0.2961,43683.0,43675.0,0.23321711]
[1704139429027,0.00145,43686.0,43681.0,0.04]
[1704139429252,0.00145,43686.0,43681.0,0.27321711]
[1704139429705,0.00145,43686.0,43685.0,0.04]
[1704139429930,0.00145,43686.0,43685.0,0.27321711]
[1704139430139,0.00145,43686.0,43685.0,0.93947511]
[1704139430799,0.00245,43686.0,43685.0,0.57321711]
[1704139431413,0.00145,43686.0,43685.0,0.57321711]
[1704139431661,0.00145,43686.0,43685.0,0.53321711]
[1704139431863,0.00145,43686.0,43685.0,0.666258]
[1704139432368,0.00145,43686.0,43685.0,0.017]
[1704139432550,0.06145,43686.0,43685.0,0.017]
[1704139432772,0.16245,43686.0,43685.0,0.017]
[1704139433018,0.16245,43686.0,43681.0,0.01]
[1704139433226,0.06,43685.0,43679.0,0.02764621]
[1704139433432,0.10434,43685.0,43679.0,0.02764621]
[1704139433644,0.12012,43684.0,43677.0,0.05]
[1704139433848,0.06,43681.0,43677.0,0.05]
[1704139434067,0.06,43680.0,43677.0,0.05]
[1704139434268,0.06,43680.0,43676.0,0.04916863]
[1704139434472,0.05964,43680.0,43674.0,0.406344]
[1704139434674,0.04656,43683.0,43675.0,0.63955511]
[1704139434914,0.01145,43686.0,43675.0,0.63955511]
[1704139435201,0.00145,43686.0,43675.0,0.63955511]
[1704139435383,0.00145,43686.0,43676.0,0.3]
[1704139435858,0.06,43685.0,43676.0,0.3]
[1704139436049,0.06,43684.0,43676.0,0.34960421]
[1704139436583,0.06,43684.0,43676.0,0.35660421]
[1704139436783,0.05064,43685.0,43676.0,0.58582132]
[1704139436989,0.05791,43686.0,43677.0,0.366324]
[1704139437155,0.00145,43686.0,43677.0,0.366324]
[1704139438408,0.04633,43686.0,43685.0,0.04]
[1704139438619,0.00145,43686.0,43685.0,0.63947511]
[1704139438828,0.00145,43686.0,43685.0,1.00573311]
[1704139439051,0.00145,43686.0,43685.0,1.30573311]
[1704139439486,0.00545,43686.0,43685.0,1.30573311]
[1704139439696,0.00545,43686.0,43685.0,1.36633311]
[1704139439896,0.00145,43686.0,43685.0,1.36633311]
[1704139440331,0.0265,43693.0,43690.0,4.96815032]
[1704139440576,0.0265,43693.0,43691.0,1.53942511]
[1704139440784,9.6e-07,43692.0,43691.0,1.80563311]
[1704139441013,9.6e-07,43692.0,43691.0,1.49150511]
[1704139441449,9.6e-07,43693.0,43692.0,0.706199]
[1704139441664,9.6e-07,43693.0,43692.0,1.23941611]
[1704139442081,9.6e-07,43693.0,43692.0,0.63741711]
[1704139442295,9.6e-07,43693.0,43692.0,0.83741711]
[1704139442501,9.6e-07,43693.0,43692.0,1.20361611]
[1704139442906,9.6e-07,43693.0,43692.0,1.02961611]
[1704139443137,9.6e-07,43693.0,43692.0,0.96541611]
[1704139443349,9.6e-07,43693.0,43692.0,1.01239611]
[1704139443771,9.6e-07,43693.0,43692.0,1.13297611]
[1704139445333,9.6e-07,43693.0,43692.0,1.29354643]
[1704139445551,9.6e-07,43693.0,43692.0,1.19354643]
[1704139446579,9.6e-07,43693.0,43692.0,1.29354643]
[1704139446799,9.6e-07,43693.0,43692.0,1.65974543]
[1704139446986,9.6e-07,43693.0,43692.0,1.75974543]
[1704139447844,9.6e-07,43693.0,43692.0,1.85974543]
[1704139448061,9.6e-07,43693.0,43692.0,1.89218543]
[1704139448515,9.6e-07,43693.0,43692.0,2.59615101]
[1704139448716,9.6e-07,43693.0,43692.0,2.55151101]
[1704139448931,9.6e-07,43693.0,43692.0,2.59975101]
[1704139449142,9.6e-07,43693.0,43692.0,2.55151101]
[1704139449560,9.6e-07,43693.0,43692.0,2.05166641]
[1704139449770,9.6e-07,43693.0,43692.0,1.39234083]
[1704139449986,6.096e-05,43693.0,43692.0,0.99234083]
[1704139450195,6.096e-05,43693.0,43692.0,1.65170331]
[1704139451431,6.096e-05,43693.0,43692.0,0.05292472]
[1704139451618,6.096e-05,43693.0,43692.0,0.68545631]
[1704139451853,6.096e-05,43693.0,43692.0,0.026]
[1704139452473,6.096e-05,43693.0,43690.0,4.96815032]
[1704139452915,6.096e-05,43693.0,43692.0,0.027]
[1704139453125,6.096e-05,43693.0,43692.0,0.011]
[1704139453512,6.096e-05,43693.0,43692.0,0.022]
[1704139453922,6.096e-05,43693.0,43692.0,0.29521711]
[1704139454121,6.096e-05,43693.0,43692.0,0.65041611]
[1704139455135,6.096e-05,43693.0,43692.0,1.31680088]
[1704139455313,6.096e-05,43693.0,43692.0,1.46324088]
[1704139455642,6.096e-05,43693.0,43692.0,1.78712088]
[1704139455852,0.48206097,43694.0,43693.0,0.14]
[1704139456069,0.48206097,43694.0,43693.0,1.69879288]
[1704139456381,0.48206097,43694.0,43693.0,1.75297288]
[1704139456968,0.48206097,43694.0,43693.0,0.32739711]
[1704139457132,0.48206097,43694.0,43693.0,0.27321711]
[1704139457541,0.48206097,43694.0,43693.0,1.03940811]
[1704139457755,0.48206097,43694.0,43693.0,1.69880199]
[1704139458223,0.48206097,43694.0,43693.0,2.02180199]
[1704139458410,0.48206097,43694.0,43693.0,2.05388199]
[1704139458611,0.48206097,43694.0,43693.0,2.00780199]
[1704139459222,0.48206097,43694.0,43693.0,2.07052199]
[1704139460253,0.39075027,43694.0,43693.0,2.07052199]
[1704139460670,0.39075027,43694.0,43693.0,2.06152199]
[1704139461094,0.39075027,43694.0,43693.0,2.06452199]
[1704139461304,0.39075027,43694.0,43693.0,2.03480199]
[1704139461520,0.39075027,43694.0,43693.0,2.01780199]
[1704139461730,0.39075027,43694.0,43693.0,2.03480199]
[1704139462341,0.39075027,43694.0,43693.0,2.08250199]
[1704139462995,0.39075027,43694.0,43693.0,2.03480199]
[1704139463484,0.39075027,43694.0,43693.0,1.63480199]
[1704139464951,0.39075027,43694.0,43693.0,1.68892199]
[1704139465158,0.39075027,43694.0,43693.0,2.05511299]
[1704139465601,0.39075027,43694.0,43693.0,2.62130399]
[1704139466021,0.27629658,43694.0,43693.0,2.62130399]
[1704139466865,0.27629658,43694.0,43693.0,2.72130399]
[1704139468146,0.27629658,43694.0,43693.0,1.52273099]
[1704139468316,0.27629658,43694.0,43693.0,1.63480199]
[1704139468736,0.27629658,43694.0,43693.0,2.61566399]
[1704139469311,0.27629658,43694.0,43693.0,2.36718399]